[Event "Early-Titled-Tuesday-Blitz-April-23-2024"]
[Site "Chess.com"]
[Date "2024.04.23"]
[Round "7"]
[White "ChadBiryani"]
[Black "hmatyi07"]
[Result "1/2-1/2"]
[WhiteElo "2440"]
[BlackElo "2307"]
[TimeControl "180+1"]
[EndTime "9:21:37 PDT"]
[Termination "Game drawn - insufficient material"]

1. d4 {[%clk 0:02:54.1]} 1... Nf6 {[%clk 0:02:56.2]} 2. Bg5 {[%clk 0:02:53.7]}
2... Ne4 {[%clk 0:02:50.3]} 3. h4 {[%clk 0:02:53.5]} 3... h6 {[%clk 0:02:47.3]}
4. Bf4 {[%clk 0:02:53.2]} 4... c5 {[%clk 0:02:45.5]} 5. f3 {[%clk 0:02:50.4]}
5... Nf6 {[%clk 0:02:37.8]} 6. e4 {[%clk 0:02:37.7]} 6... d5 {[%clk 0:02:37.4]}
7. dxc5 {[%clk 0:02:34.4]} 7... Qa5+ {[%clk 0:02:24]} 8. Nc3 {[%clk 0:02:34.3]}
8... dxe4 {[%clk 0:02:20]} 9. Qd4 {[%clk 0:02:11.2]} 9... Nc6 {[%clk 0:02:17.7]}
10. Bb5 {[%clk 0:02:11]} 10... Bd7 {[%clk 0:02:13.9]} 11. Bxc6 {[%clk
0:02:09.8]} 11... Bxc6 {[%clk 0:02:12.4]} 12. b4 {[%clk 0:02:10.2]} 12... Qd8
{[%clk 0:02:07.7]} 13. Qc4 {[%clk 0:01:57.8]} 13... exf3 {[%clk 0:01:51.1]} 14.
Rd1 {[%clk 0:01:41.8]} 14... f2+ {[%clk 0:01:33.8]} 15. Kxf2 {[%clk 0:01:38]}
15... Ne4+ {[%clk 0:01:28.2]} 16. Ke1 {[%clk 0:01:34.8]} 16... Qc8 {[%clk
0:01:21.5]} 17. Nf3 {[%clk 0:01:31.6]} 17... Nxc3 {[%clk 0:01:18.1]} 18. Qxc3
{[%clk 0:01:30.8]} 18... Qe6+ {[%clk 0:01:15.3]} 19. Kf2 {[%clk 0:01:28.4]}
19... Qf5 {[%clk 0:01:06.6]} 20. Be3 {[%clk 0:01:17.2]} 20... e5 {[%clk
0:00:50.7]} 21. Qxe5+ {[%clk 0:01:11.2]} 21... Qxe5 {[%clk 0:00:50.3]} 22. Nxe5
{[%clk 0:01:11.5]} 22... Be7 {[%clk 0:00:43.3]} 23. Nxc6 {[%clk 0:01:05.3]}
23... bxc6 {[%clk 0:00:42.5]} 24. Rde1 {[%clk 0:01:06]} 24... O-O {[%clk
0:00:40.5]} 25. Bxh6 {[%clk 0:01:03.5]} 25... Bf6 {[%clk 0:00:35.7]} 26. Bg5
{[%clk 0:00:54.3]} 26... Bc3 {[%clk 0:00:30.9]} 27. Re4 {[%clk 0:00:54.4]} 27...
Rab8 {[%clk 0:00:24.7]} 28. a3 {[%clk 0:00:54.2]} 28... a5 {[%clk 0:00:24.9]}
29. Rc4 {[%clk 0:00:52.7]} 29... axb4 {[%clk 0:00:22.9]} 30. axb4 {[%clk
0:00:49.9]} 30... Bxb4 {[%clk 0:00:22.3]} 31. Bf4 {[%clk 0:00:47.9]} 31... Rb5
{[%clk 0:00:20.2]} 32. Bd6 {[%clk 0:00:48.2]} 32... Re8 {[%clk 0:00:18.2]} 33.
Kf3 {[%clk 0:00:40.9]} 33... Bd2 {[%clk 0:00:17.6]} 34. Rd1 {[%clk 0:00:36.7]}
34... Bh6 {[%clk 0:00:17.5]} 35. g4 {[%clk 0:00:32.2]} 35... f6 {[%clk
0:00:16.6]} 36. Rg1 {[%clk 0:00:27.8]} 36... Bd2 {[%clk 0:00:12.6]} 37. Rg2
{[%clk 0:00:26.3]} 37... Bb4 {[%clk 0:00:12.1]} 38. g5 {[%clk 0:00:25.7]} 38...
fxg5 {[%clk 0:00:11.8]} 39. Rxg5 {[%clk 0:00:25.9]} 39... Re1 {[%clk 0:00:11.6]}
40. Rcg4 {[%clk 0:00:23.7]} 40... Bc3 {[%clk 0:00:10.4]} 41. h5 {[%clk
0:00:22.3]} 41... Rf1+ {[%clk 0:00:10.4]} 42. Kg2 {[%clk 0:00:22.2]} 42... Rf7
{[%clk 0:00:10.5]} 43. h6 {[%clk 0:00:19.8]} 43... Bf6 {[%clk 0:00:11.1]} 44.
Rg6 {[%clk 0:00:19.3]} 44... Kh7 {[%clk 0:00:11.8]} 45. hxg7 {[%clk 0:00:19.1]}
45... Rxg7 {[%clk 0:00:12]} 46. Rxg7+ {[%clk 0:00:17.4]} 46... Bxg7 {[%clk
0:00:12.4]} 47. Rc4 {[%clk 0:00:16.8]} 47... Rb2 {[%clk 0:00:12.3]} 48. Kf3
{[%clk 0:00:17]} 48... Kg6 {[%clk 0:00:12.6]} 49. Ke4 {[%clk 0:00:16.7]} 49...
Kf7 {[%clk 0:00:12.3]} 50. Kd3 {[%clk 0:00:16]} 50... Ke6 {[%clk 0:00:11.7]} 51.
Rg4 {[%clk 0:00:16.1]} 51... Bf6 {[%clk 0:00:11.3]} 52. Rg8 {[%clk 0:00:15.6]}
52... Ra2 {[%clk 0:00:09.9]} 53. Re8+ {[%clk 0:00:15.8]} 53... Kd7 {[%clk
0:00:09.3]} 54. Rf8 {[%clk 0:00:15.9]} 54... Ke6 {[%clk 0:00:09.3]} 55. Re8+
{[%clk 0:00:15.8]} 55... Kd7 {[%clk 0:00:09.7]} 56. Rg8 {[%clk 0:00:16.1]} 56...
Ke6 {[%clk 0:00:08.4]} 57. Rc8 {[%clk 0:00:16.2]} 57... Kd7 {[%clk 0:00:08.5]}
58. Rc7+ {[%clk 0:00:16.2]} 58... Ke6 {[%clk 0:00:08.8]} 59. Rxc6 {[%clk
0:00:16.4]} 59... Kd5 {[%clk 0:00:09.5]} 60. Rc8 {[%clk 0:00:14.1]} 60... Ra3+
{[%clk 0:00:09.1]} 61. Ke2 {[%clk 0:00:12.7]} 61... Ra2 {[%clk 0:00:08.6]} 62.
Kd2 {[%clk 0:00:11.8]} 62... Bg5+ {[%clk 0:00:08.3]} 63. Kd3 {[%clk 0:00:11.4]}
63... Ra3+ {[%clk 0:00:08.8]} 64. Ke2 {[%clk 0:00:09.7]} 64... Ra2 {[%clk
0:00:08.8]} 65. Kd3 {[%clk 0:00:09.1]} 65... Ra3+ {[%clk 0:00:09]} 66. Ke2
{[%clk 0:00:09.7]} 66... Ra2 {[%clk 0:00:09.5]} 67. Bf8 {[%clk 0:00:08]} 67...
Rxc2+ {[%clk 0:00:09.3]} 68. Kf3 {[%clk 0:00:08.7]} 68... Rc3+ {[%clk
0:00:07.4]} 69. Kg4 {[%clk 0:00:08.8]} 69... Be3 {[%clk 0:00:06.9]} 70. c6
{[%clk 0:00:09.3]} 70... Bb6 {[%clk 0:00:06.9]} 71. Bg7 {[%clk 0:00:04.7]} 71...
Rxc6 {[%clk 0:00:06.6]} 72. Rg8 {[%clk 0:00:04.5]} 72... Kc5 {[%clk 0:00:04.6]}
73. Kf5 {[%clk 0:00:04.7]} 73... Kb5 {[%clk 0:00:05]} 74. Be5 {[%clk 0:00:05.1]}
74... Rc5 {[%clk 0:00:04.9]} 75. Ke6 {[%clk 0:00:04]} 75... Rc6+ {[%clk
0:00:05.4]} 76. Kd7 {[%clk 0:00:04]} 76... Rc5 {[%clk 0:00:05.5]} 77. Bd6 {[%clk
0:00:04.7]} 77... Rd5 {[%clk 0:00:05.8]} 78. Rg4 {[%clk 0:00:04.9]} 78... Bc5
{[%clk 0:00:05.8]} 79. Rg6 {[%clk 0:00:04.4]} 79... Bxd6 {[%clk 0:00:06.2]} 80.
Rxd6 {[%clk 0:00:05.3]} 80... Rxd6+ {[%clk 0:00:06.8]} 81. Kxd6 {[%clk
0:00:06.2]} 1/2-1/2

[Event "Early-Titled-Tuesday-Blitz-April-23-2024"]
[Site "Chess.com"]
[Date "2024.04.23"]
[Round "7"]
[White "Evgeny81"]
[Black "Stanbad1"]
[Result "1-0"]
[WhiteElo "2790"]
[BlackElo "2641"]
[TimeControl "180+1"]
[EndTime "9:21:38 PDT"]
[Termination "Evgeny81 won on time"]

1. e4 {[%clk 0:03:00.9]} 1... e6 {[%clk 0:02:58.8]} 2. d4 {[%clk 0:03:00.2]}
2... d5 {[%clk 0:02:58.3]} 3. Nc3 {[%clk 0:03:00.9]} 3... Nf6 {[%clk 0:02:57.3]}
4. e5 {[%clk 0:03:00.3]} 4... Nfd7 {[%clk 0:02:56]} 5. Nce2 {[%clk 0:03:00.3]}
5... c5 {[%clk 0:02:55]} 6. c3 {[%clk 0:03:00.1]} 6... Nc6 {[%clk 0:02:54.6]} 7.
f4 {[%clk 0:03:00.4]} 7... b5 {[%clk 0:02:49.5]} 8. Nf3 {[%clk 0:03:00.2]} 8...
b4 {[%clk 0:02:49.5]} 9. g3 {[%clk 0:02:57.3]} 9... a5 {[%clk 0:02:49.2]} 10. h4
{[%clk 0:02:51.3]} 10... cxd4 {[%clk 0:02:49]} 11. cxd4 {[%clk 0:02:51.1]} 11...
Ba6 {[%clk 0:02:49.1]} 12. Bh3 {[%clk 0:02:48.4]} 12... Qb6 {[%clk 0:02:47.2]}
13. Be3 {[%clk 0:02:47.3]} 13... g6 {[%clk 0:02:43.8]} 14. h5 {[%clk 0:02:45.4]}
14... Rg8 {[%clk 0:02:43.1]} 15. Kf2 {[%clk 0:02:42.8]} 15... Be7 {[%clk
0:02:37.8]} 16. Rc1 {[%clk 0:02:39.3]} 16... O-O-O {[%clk 0:02:30.7]} 17. hxg6
{[%clk 0:02:32]} 17... hxg6 {[%clk 0:02:29.9]} 18. Bg2 {[%clk 0:02:20.4]} 18...
Rh8 {[%clk 0:02:24.6]} 19. Qd2 {[%clk 0:02:12.6]} 19... Kb7 {[%clk 0:02:22]} 20.
g4 {[%clk 0:02:09.6]} 20... Qb5 {[%clk 0:02:20.2]} 21. Ng3 {[%clk 0:02:09.1]}
21... Nb6 {[%clk 0:02:14.6]} 22. b3 {[%clk 0:02:06.9]} 22... Qd3 {[%clk
0:02:10.5]} 23. Qb2 {[%clk 0:02:02.8]} 23... g5 {[%clk 0:01:56.7]} 24. Rxh8
{[%clk 0:02:01.3]} 24... Rxh8 {[%clk 0:01:55.6]} 25. Bf1 {[%clk 0:01:58.6]}
25... Qg6 {[%clk 0:01:44.9]} 26. Bxa6+ {[%clk 0:01:52.7]} 26... Kxa6 {[%clk
0:01:45.8]} 27. Rxc6 {[%clk 0:01:52.3]} 27... gxf4 {[%clk 0:01:45.6]} 28. Bxf4
{[%clk 0:01:50.5]} 28... Qxg4 {[%clk 0:01:45.5]} 29. Qe2+ {[%clk 0:01:45.1]}
29... Kb7 {[%clk 0:01:44]} 30. Qb5 {[%clk 0:01:45]} 30... Bd8 {[%clk 0:01:43.1]}
31. Rxb6+ {[%clk 0:00:33.6]} 31... Bxb6 {[%clk 0:01:39.7]} 32. Qd7+ {[%clk
0:00:34.1]} 32... Bc7 {[%clk 0:01:38]} 33. Qxf7 {[%clk 0:00:33.9]} 33... a4
{[%clk 0:01:09.8]} 34. bxa4 {[%clk 0:00:33.1]} 34... Ra8 {[%clk 0:01:08.6]} 35.
Bg5 {[%clk 0:00:27.3]} 35... Rxa4 {[%clk 0:00:50.3]} 36. Bd8 {[%clk 0:00:27]}
36... Rxa2+ {[%clk 0:00:50.1]} 37. Ne2 {[%clk 0:00:27.2]} 37... Rc2 {[%clk
0:00:46.5]} 38. Qd7 {[%clk 0:00:21.6]} 38... Qe4 {[%clk 0:00:29.8]} 39. Qb5+
{[%clk 0:00:21.6]} 39... Kc8 {[%clk 0:00:29]} 40. Bxc7 {[%clk 0:00:22]} 40...
Kxc7 {[%clk 0:00:24.4]} 41. Qa5+ {[%clk 0:00:14.5]} 41... Kd7 {[%clk 0:00:24.4]}
42. Qa7+ {[%clk 0:00:13.2]} 42... Ke8 {[%clk 0:00:24.2]} 43. Qb8+ {[%clk
0:00:13.1]} 43... Ke7 {[%clk 0:00:24.1]} 44. Qxb4+ {[%clk 0:00:12.9]} 44... Ke8
{[%clk 0:00:23.2]} 45. Qb8+ {[%clk 0:00:13]} 45... Ke7 {[%clk 0:00:23.3]} 46.
Qd6+ {[%clk 0:00:13.1]} 46... Ke8 {[%clk 0:00:22.2]} 47. Qxe6+ {[%clk
0:00:13.5]} 47... Kd8 {[%clk 0:00:21.9]} 48. Qd6+ {[%clk 0:00:13.8]} 48... Ke8
{[%clk 0:00:21.9]} 49. Qe6+ {[%clk 0:00:12.7]} 49... Kd8 {[%clk 0:00:22]} 50.
Qb6+ {[%clk 0:00:12.7]} 50... Ke8 {[%clk 0:00:21.6]} 51. Qb5+ {[%clk 0:00:12.5]}
51... Kd8 {[%clk 0:00:20]} 52. Qa5+ {[%clk 0:00:07.6]} 52... Ke8 {[%clk
0:00:19.6]} 53. Qa8+ {[%clk 0:00:07.5]} 53... Ke7 {[%clk 0:00:19.4]} 54. Qb7+
{[%clk 0:00:07.7]} 54... Ke8 {[%clk 0:00:19.8]} 55. Qb8+ {[%clk 0:00:07.9]}
55... Ke7 {[%clk 0:00:20.1]} 56. Qd6+ {[%clk 0:00:08]} 56... Ke8 {[%clk
0:00:20.3]} 57. Qb8+ {[%clk 0:00:06.6]} 57... Ke7 {[%clk 0:00:19.1]} 58. Qb7+
{[%clk 0:00:06.3]} 58... Ke8 {[%clk 0:00:18.8]} 59. Qb5+ {[%clk 0:00:05.3]}
59... Ke7 {[%clk 0:00:18.9]} 60. Qb4+ {[%clk 0:00:05]} 60... Ke8 {[%clk
0:00:19.1]} 61. Qa4+ {[%clk 0:00:05.3]} 61... Ke7 {[%clk 0:00:19.2]} 62. Qa3+
{[%clk 0:00:05.4]} 62... Ke8 {[%clk 0:00:19.3]} 63. Qe3 {[%clk 0:00:06.3]} 63...
Qg4 {[%clk 0:00:18.8]} 64. Ng1 {[%clk 0:00:04.9]} 64... Qh4+ {[%clk 0:00:18.3]}
65. Kf1 {[%clk 0:00:03.8]} 65... Rb2 {[%clk 0:00:16]} 66. Kg2 {[%clk 0:00:03.9]}
66... Qg4+ {[%clk 0:00:14.2]} 67. Kf1 {[%clk 0:00:03.1]} 67... Rb1+ {[%clk
0:00:13.7]} 68. Kf2 {[%clk 0:00:03.7]} 68... Qh4+ {[%clk 0:00:11.8]} 69. Qg3
{[%clk 0:00:04.1]} 69... Qe4 {[%clk 0:00:09.4]} 70. Qg8+ {[%clk 0:00:04.2]}
70... Ke7 {[%clk 0:00:09.5]} 71. Qg7+ {[%clk 0:00:04.3]} 71... Ke8 {[%clk
0:00:09.9]} 72. Qh8+ {[%clk 0:00:03.3]} 72... Ke7 {[%clk 0:00:10.2]} 73. Qf6+
{[%clk 0:00:03.6]} 73... Ke8 {[%clk 0:00:10.4]} 74. e6 {[%clk 0:00:04.1]} 74...
Qh7 {[%clk 0:00:03.3]} 75. Qe5 {[%clk 0:00:03.6]} 75... Qd7 {[%clk 0:00:01.9]}
76. exd7+ {[%clk 0:00:03.2]} 1-0

[Event "Early-Titled-Tuesday-Blitz-April-23-2024"]
[Site "Chess.com"]
[Date "2024.04.23"]
[Round "7"]
[White "bintang_top"]
[Black "hongnhung1234"]
[Result "1/2-1/2"]
[WhiteElo "2395"]
[BlackElo "2551"]
[TimeControl "180+1"]
[EndTime "9:21:49 PDT"]
[Termination "Game drawn - insufficient material"]

1. d4 {[%clk 0:02:59.6]} 1... f5 {[%clk 0:02:57.5]} 2. Nf3 {[%clk 0:02:57.3]}
2... Nf6 {[%clk 0:02:58]} 3. Bf4 {[%clk 0:02:57.3]} 3... g6 {[%clk 0:02:57.9]}
4. h3 {[%clk 0:02:55.7]} 4... d6 {[%clk 0:02:57.2]} 5. e3 {[%clk 0:02:56]} 5...
Bg7 {[%clk 0:02:57.1]} 6. Bc4 {[%clk 0:02:53.2]} 6... e6 {[%clk 0:02:56.9]} 7.
Nbd2 {[%clk 0:02:52.2]} 7... Qe7 {[%clk 0:02:55.9]} 8. Bh2 {[%clk 0:02:50.9]}
8... Nc6 {[%clk 0:02:55.2]} 9. c3 {[%clk 0:02:50.1]} 9... Bd7 {[%clk 0:02:53.9]}
10. Qe2 {[%clk 0:02:42.1]} 10... a6 {[%clk 0:02:52.5]} 11. O-O {[%clk 0:02:40]}
11... O-O {[%clk 0:02:52.4]} 12. Bb3 {[%clk 0:02:34.9]} 12... h6 {[%clk
0:02:51.4]} 13. e4 {[%clk 0:02:33.9]} 13... Kh7 {[%clk 0:02:43.6]} 14. exf5
{[%clk 0:02:31.1]} 14... exf5 {[%clk 0:02:44.5]} 15. Qxe7 {[%clk 0:02:27.7]}
15... Nxe7 {[%clk 0:02:45.4]} 16. Rfe1 {[%clk 0:02:25.6]} 16... Rae8 {[%clk
0:02:45.4]} 17. Nc4 {[%clk 0:02:18.1]} 17... Bc6 {[%clk 0:02:38.9]} 18. Nxd6
{[%clk 0:02:03.5]} 18... cxd6 {[%clk 0:02:35]} 19. Bxd6 {[%clk 0:02:03.9]} 19...
Ne4 {[%clk 0:02:28.1]} 20. Ba3 {[%clk 0:01:51.8]} 20... Rf6 {[%clk 0:02:20.3]}
21. Ne5 {[%clk 0:01:46.1]} 21... Nc8 {[%clk 0:02:10.6]} 22. Nxc6 {[%clk
0:01:37.3]} 22... Rxc6 {[%clk 0:02:05.3]} 23. Bd5 {[%clk 0:01:34.3]} 23... Rc7
{[%clk 0:02:03.1]} 24. Re2 {[%clk 0:01:24]} 24... Nf6 {[%clk 0:01:59.9]} 25.
Rxe8 {[%clk 0:01:23]} 25... Nxe8 {[%clk 0:02:00.8]} 26. Re1 {[%clk 0:01:22.6]}
26... Nf6 {[%clk 0:02:01]} 27. Bf3 {[%clk 0:01:20.2]} 27... Nb6 {[%clk
0:01:57.1]} 28. Bc5 {[%clk 0:01:03]} 28... Na4 {[%clk 0:01:56.6]} 29. Bd6 {[%clk
0:01:00.5]} 29... Rd7 {[%clk 0:01:56.2]} 30. Ba3 {[%clk 0:00:56.9]} 30... b5
{[%clk 0:01:50.4]} 31. Re6 {[%clk 0:00:53.1]} 31... Ra7 {[%clk 0:01:43]} 32. c4
{[%clk 0:00:37.5]} 32... bxc4 {[%clk 0:01:29.6]} 33. Bd1 {[%clk 0:00:36.8]}
33... Nxb2 {[%clk 0:01:12.3]} 34. Bxb2 {[%clk 0:00:36.5]} 34... Nd5 {[%clk
0:01:12.4]} 35. Bf3 {[%clk 0:00:29.1]} 35... c3 {[%clk 0:01:06.5]} 36. Bc1
{[%clk 0:00:28.7]} 36... Nb4 {[%clk 0:01:02.8]} 37. a3 {[%clk 0:00:21.2]} 37...
Nd3 {[%clk 0:01:01.6]} 38. Be3 {[%clk 0:00:20.8]} 38... Rc7 {[%clk 0:00:56.5]}
39. Be2 {[%clk 0:00:17.5]} 39... f4 {[%clk 0:00:30.1]} 40. Bxd3 {[%clk
0:00:16.6]} 40... fxe3 {[%clk 0:00:30.3]} 41. Bxg6+ {[%clk 0:00:16.6]} 41... Kg8
{[%clk 0:00:30.9]} 42. Bc2 {[%clk 0:00:14.3]} 42... exf2+ {[%clk 0:00:29.3]} 43.
Kxf2 {[%clk 0:00:15.1]} 43... Bxd4+ {[%clk 0:00:29.5]} 44. Ke2 {[%clk
0:00:15.5]} 44... Kf7 {[%clk 0:00:28.9]} 45. Rxh6 {[%clk 0:00:12.1]} 45... a5
{[%clk 0:00:23.4]} 46. Rh7+ {[%clk 0:00:11.7]} 46... Bg7 {[%clk 0:00:23.5]} 47.
Rh5 {[%clk 0:00:09]} 47... Re7+ {[%clk 0:00:22.8]} 48. Kd1 {[%clk 0:00:09]}
48... Rd7+ {[%clk 0:00:23]} 49. Kc1 {[%clk 0:00:08.2]} 49... Rd2 {[%clk
0:00:20.2]} 50. Rf5+ {[%clk 0:00:07.7]} 50... Ke6 {[%clk 0:00:19.4]} 51. Rxa5
{[%clk 0:00:07.5]} 51... Rxg2 {[%clk 0:00:19.4]} 52. Ra6+ {[%clk 0:00:07.5]}
52... Ke5 {[%clk 0:00:19.8]} 53. Rg6 {[%clk 0:00:08.1]} 53... Rxg6 {[%clk
0:00:12.5]} 54. Bxg6 {[%clk 0:00:09]} 54... Kd4 {[%clk 0:00:12.2]} 55. Kc2
{[%clk 0:00:08.8]} 55... Bf6 {[%clk 0:00:12.8]} 56. a4 {[%clk 0:00:08.6]} 56...
Bd8 {[%clk 0:00:12.7]} 57. Be8 {[%clk 0:00:08]} 57... Ba5 {[%clk 0:00:12.7]} 58.
Kb3 {[%clk 0:00:06.8]} 58... Ke3 {[%clk 0:00:11.8]} 59. Bg6 {[%clk 0:00:07.4]}
59... Kf4 {[%clk 0:00:12.2]} 60. h4 {[%clk 0:00:07]} 60... Kg4 {[%clk
0:00:11.8]} 61. h5 {[%clk 0:00:07.5]} 61... Kg5 {[%clk 0:00:12.4]} 62. Kc4
{[%clk 0:00:07.2]} 62... c2 {[%clk 0:00:10]} 63. Bxc2 {[%clk 0:00:07.1]} 63...
Kxh5 {[%clk 0:00:10.6]} 64. Kb5 {[%clk 0:00:07.8]} 64... Bc3 {[%clk 0:00:11.2]}
65. a5 {[%clk 0:00:07.9]} 65... Bxa5 {[%clk 0:00:11.6]} 1/2-1/2

[Event "Early-Titled-Tuesday-Blitz-April-23-2024"]
[Site "Chess.com"]
[Date "2024.04.23"]
[Round "7"]
[White "Nf3c5"]
[Black "CSB7"]
[Result "0-1"]
[WhiteElo "2652"]
[BlackElo "2809"]
[TimeControl "180+1"]
[EndTime "9:21:56 PDT"]
[Termination "CSB7 won on time"]

1. e4 {[%clk 0:03:00.9]} 1... c6 {[%clk 0:02:59.8]} 2. d4 {[%clk 0:03:00.2]}
2... d5 {[%clk 0:03:00]} 3. exd5 {[%clk 0:03:01.1]} 3... cxd5 {[%clk 0:02:59.6]}
4. Bd3 {[%clk 0:03:01.7]} 4... Nc6 {[%clk 0:02:52.4]} 5. c3 {[%clk 0:03:02.2]}
5... Nf6 {[%clk 0:02:51.7]} 6. Bf4 {[%clk 0:03:02.5]} 6... g6 {[%clk 0:02:50.3]}
7. Nf3 {[%clk 0:02:59.7]} 7... Bf5 {[%clk 0:02:50]} 8. Be2 {[%clk 0:02:59.8]}
8... Bg7 {[%clk 0:02:48.3]} 9. O-O {[%clk 0:02:57.7]} 9... O-O {[%clk
0:02:48.3]} 10. Nbd2 {[%clk 0:02:58.1]} 10... Ne4 {[%clk 0:02:44.3]} 11. Re1
{[%clk 0:02:52.3]} 11... Qd7 {[%clk 0:02:28.8]} 12. h3 {[%clk 0:02:46.4]} 12...
h6 {[%clk 0:02:24.2]} 13. Nb3 {[%clk 0:02:38.5]} 13... g5 {[%clk 0:02:17.1]} 14.
Bh2 {[%clk 0:02:35]} 14... Bh7 {[%clk 0:02:12.5]} 15. Nfd2 {[%clk 0:02:27.1]}
15... b6 {[%clk 0:02:03.9]} 16. Nxe4 {[%clk 0:02:23.9]} 16... Bxe4 {[%clk
0:02:01.4]} 17. Bg4 {[%clk 0:02:15.7]} 17... f5 {[%clk 0:01:59.8]} 18. Bh5
{[%clk 0:02:10.2]} 18... f4 {[%clk 0:01:58]} 19. f3 {[%clk 0:02:10.3]} 19... Bf5
{[%clk 0:01:54.4]} 20. Nc1 {[%clk 0:02:03.8]} 20... e5 {[%clk 0:01:51.8]} 21.
dxe5 {[%clk 0:01:59.7]} 21... Nxe5 {[%clk 0:01:52.7]} 22. Bg4 {[%clk 0:01:52.9]}
22... Bxg4 {[%clk 0:01:34.7]} 23. hxg4 {[%clk 0:01:50.2]} 23... Nc4 {[%clk
0:01:29.2]} 24. Nd3 {[%clk 0:01:44.1]} 24... Rfe8 {[%clk 0:01:22.3]} 25. Qb3
{[%clk 0:01:39.7]} 25... Rxe1+ {[%clk 0:01:15.7]} 26. Rxe1 {[%clk 0:01:39]}
26... Re8 {[%clk 0:01:16.3]} 27. Kf2 {[%clk 0:01:23.5]} 27... b5 {[%clk
0:01:06]} 28. g3 {[%clk 0:01:10.8]} 28... d4 {[%clk 0:00:51.9]} 29. Nc5 {[%clk
0:00:32.1]} 29... Qc6 {[%clk 0:00:44.4]} 30. Ne4 {[%clk 0:00:30.6]} 30... dxc3
{[%clk 0:00:25.9]} 31. bxc3 {[%clk 0:00:25.8]} 31... fxg3+ {[%clk 0:00:24.5]}
32. Bxg3 {[%clk 0:00:25.5]} 32... Kh8 {[%clk 0:00:25.2]} 33. Qb4 {[%clk
0:00:22.6]} 33... a5 {[%clk 0:00:21.4]} 34. Qb3 {[%clk 0:00:18.8]} 34... Rf8
{[%clk 0:00:19.7]} 35. Kg2 {[%clk 0:00:18]} 35... Qb6 {[%clk 0:00:18.2]} 36. Bf2
{[%clk 0:00:13.9]} 36... Qb7 {[%clk 0:00:18.7]} 37. Qd1 {[%clk 0:00:13.8]} 37...
Qf7 {[%clk 0:00:17.9]} 38. Qe2 {[%clk 0:00:13.6]} 38... Ne5 {[%clk 0:00:17.6]}
39. Nd2 {[%clk 0:00:11.8]} 39... a4 {[%clk 0:00:15.6]} 40. Bg3 {[%clk
0:00:11.9]} 40... Ng6 {[%clk 0:00:14.7]} 41. Ne4 {[%clk 0:00:12.4]} 41... Nf4+
{[%clk 0:00:10.7]} 42. Bxf4 {[%clk 0:00:12.4]} 42... Qxf4 {[%clk 0:00:11.6]} 43.
Rh1 {[%clk 0:00:11.9]} 43... Kg8 {[%clk 0:00:04.4]} 44. Rd1 {[%clk 0:00:12.2]}
44... Kh7 {[%clk 0:00:03.9]} 45. Rd7 {[%clk 0:00:11.3]} 45... Rf7 {[%clk
0:00:03.3]} 46. Rd5 {[%clk 0:00:10.8]} 46... Kg8 {[%clk 0:00:01.9]} 47. Qd3
{[%clk 0:00:11]} 47... Be5 {[%clk 0:00:02.2]} 48. Rd8+ {[%clk 0:00:09]} 48...
Kg7 {[%clk 0:00:02.5]} 49. Qe2 {[%clk 0:00:08.7]} 49... Qh2+ {[%clk 0:00:02.8]}
50. Kf1 {[%clk 0:00:09.3]} 50... Qh1+ {[%clk 0:00:03.2]} 51. Kf2 {[%clk
0:00:09.9]} 51... Qh2+ {[%clk 0:00:03.5]} 52. Kf1 {[%clk 0:00:10.4]} 52... Qh1+
{[%clk 0:00:03.6]} 53. Kf2 {[%clk 0:00:10.9]} 53... Bh2 {[%clk 0:00:04.2]} 54.
Ke3 {[%clk 0:00:10.7]} 54... Bf4+ {[%clk 0:00:02.7]} 55. Kd3 {[%clk 0:00:10.4]}
55... Qb1+ {[%clk 0:00:02.6]} 56. Qc2 {[%clk 0:00:10]} 56... Qf1+ {[%clk
0:00:03.1]} 57. Qe2 {[%clk 0:00:10.6]} 57... Qb1+ {[%clk 0:00:02.3]} 58. Qc2
{[%clk 0:00:10.8]} 58... Qg1 {[%clk 0:00:02.7]} 59. Qe2 {[%clk 0:00:08.7]} 59...
Qa1 {[%clk 0:00:02.3]} 60. Qc2 {[%clk 0:00:07.3]} 60... b4 {[%clk 0:00:02.1]}
61. cxb4 {[%clk 0:00:06.8]} 61... Qf1+ {[%clk 0:00:02.7]} 62. Qe2 {[%clk
0:00:06.4]} 62... Qb1+ {[%clk 0:00:02.8]} 63. Qc2 {[%clk 0:00:06.3]} 63... Qxb4
{[%clk 0:00:02.7]} 64. Qc3+ {[%clk 0:00:05.8]} 64... Qxc3+ {[%clk 0:00:03.2]}
65. Kxc3 {[%clk 0:00:06.5]} 65... Be5+ {[%clk 0:00:03.4]} 66. Kc4 {[%clk
0:00:06.7]} 66... Rxf3 {[%clk 0:00:04.1]} 67. Rd7+ {[%clk 0:00:06.3]} 67... Rf7
{[%clk 0:00:03.5]} 68. Rd5 {[%clk 0:00:05.8]} 68... Bb2 {[%clk 0:00:03.1]} 69.
Nc5 {[%clk 0:00:05.8]} 69... a3 {[%clk 0:00:03.4]} 70. Kb3 {[%clk 0:00:01.5]}
70... Rf3+ {[%clk 0:00:03.3]} 71. Kb4 {[%clk 0:00:01.1]} 71... Rf4+ {[%clk
0:00:03.7]} 72. Kb5 {[%clk 0:00:02]} 72... Rxg4 {[%clk 0:00:04]} 73. Ne6+ {[%clk
0:00:02.8]} 73... Kf7 {[%clk 0:00:04]} 74. Nc5 {[%clk 0:00:03.7]} 74... h5
{[%clk 0:00:04.2]} 75. Rd7+ {[%clk 0:00:03.9]} 75... Kg6 {[%clk 0:00:04.2]} 76.
Rd6+ {[%clk 0:00:04.1]} 76... Kf5 {[%clk 0:00:04.8]} 77. Rd5+ {[%clk 0:00:03.7]}
77... Kf4 {[%clk 0:00:05.5]} 78. Ne6+ {[%clk 0:00:03.3]} 78... Kg3 {[%clk
0:00:05.8]} 79. Nxg5 {[%clk 0:00:03.4]} 79... h4 {[%clk 0:00:05.7]} 80. Rd3+
{[%clk 0:00:02.4]} 80... Kg2 {[%clk 0:00:06.2]} 81. Nf3 {[%clk 0:00:01.6]} 81...
h3 {[%clk 0:00:05.1]} 82. Ne1+ {[%clk 0:00:02.3]} 82... Kh2 {[%clk 0:00:04.8]}
83. Nf3+ {[%clk 0:00:02.2]} 83... Kh1 {[%clk 0:00:05.4]} 84. Rd1+ {[%clk
0:00:01.6]} 84... Kg2 {[%clk 0:00:05.9]} 0-1